fUST/lending_fUST_20241230
["ID","MTS","AMOUNT","RATE_DAILY","PERIOD"]
[347166003,1735539041708,-193.648714,0.00018808,2]
[347166004,1735539041717,-379.64762,0.00018808,2]
[347166005,1735539041726,-193.648714,0.00018808,2]
[347166006,1735539041735,-379.64762,0.00018808,2]
[347166007,1735539041744,-151.0,0.00018808,2]
[347166008,1735539041753,-348.057057,0.00018808,2]
[347166009,1735539041762,-348.057057,0.00018808,2]
[347166010,1735539041771,-644.47,0.00018869,2]
[347166011,1735539041780,-500.0,0.00018869,2]
[347166012,1735539041789,-899.04,0.00018869,2]
[347166013,1735539041799,-3479.6,0.00018869,2]
[347166014,1735539041808,-1268.627667,0.0001887,2]
[347166015,1735539041817,-1268.627667,0.0001887,2]
[347166016,1735539041826,-3655.000013,0.0001887,2]
[347166017,1735539041836,-3655.000013,0.0001887,2]
[347166018,1735539041845,-151.0,0.0001887,2]
[347166019,1735539041855,-154.338824,0.0001887,2]
[347166020,1735539041864,-1122.231708,0.0001887,2]
[347166021,1735539041874,-1122.231708,0.0001887,2]
[347166022,1735539041883,-215.660806,0.0001887,2]
[347166023,1735539041893,-215.660806,0.0001887,2]
[347166024,1735539041902,-2768.29,0.0001887,2]
[347166025,1735539041911,-507.61859,0.0001887,2]
[347166026,1735539041919,-507.61859,0.0001887,2]
[347166027,1735539041929,-927.764141,0.0001887,2]
[347166028,1735539041938,-927.764141,0.0001887,2]
[347166029,1735539041947,-151.0,0.0001887,2]
[347166030,1735539041961,-385.9192,0.0001887,2]
[347166031,1735539041971,-385.9192,0.0001887,2]
[347166032,1735539041980,-676.641157,0.0001887,2]
[347166033,1735539041989,-676.641157,0.0001887,2]
[347166034,1735539041999,-151.0,0.0001887,2]
[347166035,1735539042011,-151.0,0.0001887,2]
[347166036,1735539042032,-899.74,0.0001887,2]
[347166037,1735539042052,-438.885848,0.0001887,2]
[347166038,1735539042074,-438.885848,0.0001887,2]
[347166039,1735539042096,-1363.072733,0.0001887,2]
[347166040,1735539042119,-725.64,0.0001887,2]
[347166041,1735539042140,-1363.072733,0.0001887,2]
[347166042,1735539042162,-1149.642885,0.0001887,2]
[347166043,1735539042184,-1149.642885,0.0001887,2]
[347166044,1735539042211,-170.563264,0.0001887,2]
[347166045,1735539042233,-170.563264,0.0001887,2]
[347166046,1735539042255,-1139.42417101,0.000189,2]
[347166047,1735539042276,-151.0,0.000189,2]
[347166048,1735539042285,-778.129999,0.000189,2]
[347166049,1735539042295,-778.129999,0.000189,2]
[347166050,1735539042305,-611.731519,0.000189,2]
[347166051,1735539042315,-611.731519,0.000189,2]
[347166052,1735539042326,-482.0,0.00019,2]
[347166053,1735539042335,-500.0,0.00019,2]
[347166054,1735539042345,-500.0,0.00019,2]
[347166055,1735539042357,-513.798,0.00019,2]
[347166056,1735539042367,-151.0,0.00019,2]
[347166057,1735539042376,-152.388252,0.00019,2]
[347166058,1735539042386,-591.12949,0.00019,2]
[347166059,1735539042398,-591.12949,0.00019,2]
[347166060,1735539042408,-899.04,0.00019034,2]
[347166061,1735539042418,-161.62,0.00019084,2]
[347166062,1735539042431,-215.803718,0.00019101,2]
[347166063,1735539042442,-215.803718,0.00019101,2]
[347166064,1735539042451,-151.0,0.00019101,2]
[347166065,1735539042462,-151.0,0.00019101,2]
[347166066,1735539042471,-151.0,0.00019101,2]
[347166067,1735539042481,-151.0,0.00019101,2]
[347166068,1735539042492,-221.397527,0.00019101,2]
[347166069,1735539042502,-221.397527,0.00019101,2]
[347166070,1735539042512,-381.524298,0.00019101,2]
[347166071,1735539042522,-381.524298,0.00019101,2]
[347166072,1735539042531,-669.184803,0.00019101,2]
[347166073,1735539042540,-669.184803,0.00019101,2]
[347166074,1735539042550,-644.47,0.00019143,2]
[347166075,1735539042559,-500.0,0.00019143,2]
[347166076,1735539042568,-3479.6,0.00019143,2]
[347166077,1735539042577,-151.0,0.00019144,2]
[347166078,1735539042586,-151.0,0.00019144,2]
[347166079,1735539042665,-151.0,0.00019144,2]
[347166080,1735539042675,-290.765184,0.00019144,2]
[347166081,1735539042684,-290.765184,0.00019144,2]
[347166082,1735539042694,-151.0,0.00019144,2]
[347166083,1735539042705,-2768.29,0.00019144,2]
[347166084,1735539042714,-348.057057,0.00019144,2]
[347166085,1735539042724,-348.057057,0.00019144,2]
[347166086,1735539042734,-899.74,0.00019144,2]
[347166087,1735539042743,-725.64,0.00019144,2]
[347166088,1735539042752,-899.04,0.00019176,2]
[347166089,1735539042761,-151.0,0.00019177,2]
[347166090,1735539042770,-193.648714,0.00019177,2]
[347166091,1735539042779,-379.64762,0.00019177,2]
[347166092,1735539042788,-193.648714,0.00019177,2]
[347166093,1735539042797,-379.64762,0.00019177,2]
[347166094,1735539042806,-927.764141,0.00019177,2]
[347166095,1735539042815,-927.764141,0.00019177,2]
[347166096,1735539042825,-151.0,0.00019177,2]
[347166097,1735539042834,-385.9192,0.00019177,2]
[347166098,1735539042843,-385.9192,0.00019177,2]
[347166099,1735539042852,-500.0,0.00019178,2]
[347166100,1735539042861,-1268.627667,0.00019182,2]
[347166101,1735539042870,-1268.627667,0.00019182,2]
[347166102,1735539042879,-3655.000013,0.00019182,2]
[347166103,1735539042888,-3655.000013,0.00019182,2]
[347166104,1735539042897,-1122.231708,0.00019182,2]
[347166105,1735539042906,-1122.231708,0.00019182,2]
[347166106,1735539042915,-215.660806,0.00019182,2]
[347166107,1735539042925,-215.660806,0.00019182,2]
[347166108,1735539042934,-287.842535,0.00019182,2]
[347166109,1735539042943,-438.885848,0.00019182,2]
[347166110,1735539042953,-438.885848,0.00019182,2]
[347166111,1735539042962,-1363.072733,0.00019182,2]
[347166112,1735539042972,-1363.072733,0.00019182,2]
[347166113,1735539042981,-1149.642885,0.00019182,2]
[347166114,1735539042990,-1149.642885,0.00019182,2]
[347166115,1735539042999,-170.563264,0.00019182,2]
[347166116,1735539043009,-170.563264,0.00019182,2]
[347166117,1735539043019,-32539.2812875,0.000192,2]
[347166118,1735539043029,-159.8366575,0.00019285,2]
[347166119,1735539043039,-899.04,0.00019299,2]
[347166120,1735539043048,-899.04,0.00019299,2]
[347166121,1735539043057,-899.04,0.00019299,2]
[347166122,1735539043066,-899.04,0.00019299,2]
[347166123,1735539043075,-899.27500499,0.00019299,2]
[347166124,1735539043084,-1434.56209394,0.000193,2]
[347166126,1735539043094,-1434.56209391,0.000193,2]
[347166127,1735539043103,-1434.56209391,0.000193,2]
[347166129,1735539043112,-1434.56209391,0.000193,2]
[347166132,1735539043122,-2125.92334865,0.000193,2]
[347166133,1735539043131,-2125.92334864,0.000193,2]
[347166134,1735539043140,-2125.92334864,0.000193,2]
[347166135,1735539043150,-2125.92334864,0.000193,2]
[347166136,1735539043159,-215.803718,0.000193,2]
[347166137,1735539043168,-215.803718,0.000193,2]
[347166138,1735539043177,-151.0,0.000193,2]
[347166139,1735539043186,-151.0,0.000193,2]
[347166140,1735539043195,-151.0,0.000193,2]
[347166141,1735539043207,-507.61859,0.000193,2]
[347166142,1735539043217,-507.61859,0.000193,2]
[347166143,1735539043226,-151.0,0.000193,2]
[347166144,1735539043236,-151.0,0.000193,2]
[347166145,1735539043245,-151.0,0.000193,2]
[347166146,1735539043255,-221.397527,0.000193,2]
[347166147,1735539043264,-221.397527,0.000193,2]
[347166148,1735539043273,-381.524298,0.000193,2]
[347166149,1735539043283,-381.524298,0.000193,2]
[347166150,1735539043292,-669.184803,0.000193,2]
[347166151,1735539043301,-778.129999,0.000193,2]
[347166152,1735539043310,-669.184803,0.000193,2]
[347166153,1735539043320,-778.129999,0.000193,2]
[347166154,1735539043329,-676.641157,0.000193,2]
[347166155,1735539043338,-676.641157,0.000193,2]
[347166156,1735539043347,-611.731519,0.000193,2]
[347166157,1735539043358,-611.731519,0.000193,2]
[347166158,1735539043367,-170.563264,0.000193,2]
[347166159,1735539043376,-170.563264,0.000193,2]
[347166160,1735539043386,-644.47,0.00019417,2]
[347166161,1735539043397,-500.0,0.00019417,2]
[347166162,1735539043407,-3479.6,0.00019417,2]
[347166163,1735539043416,-2768.29,0.00019418,2]
[347166165,1735539043428,-927.764141,0.00019418,2]
[347166166,1735539043437,-927.764141,0.00019418,2]
[347166167,1735539043446,-151.0,0.00019418,2]
[347166168,1735539043457,-385.9192,0.00019418,2]
[347166169,1735539043466,-385.9192,0.00019418,2]
[347166170,1735539043475,-899.74,0.00019418,2]
[347166171,1735539043485,-725.64,0.00019418,2]
[347166172,1735539043494,-155.719804,0.00019536,2]
[347166174,1735539043503,-151.342416,0.00019536,2]
[347166176,1735539043516,-151.0,0.00019536,2]
[347166177,1735539043529,-151.0,0.00019536,2]
[347166179,1735539043542,-290.765184,0.00019536,2]
[347166182,1735539043555,-290.765184,0.00019536,2]
[347166184,1735539043565,-591.12949,0.00019536,2]
[347166185,1735539043576,-591.12949,0.00019536,2]
[347166186,1735539043587,-151.0,0.00019536,2]
[347166187,1735539043599,-348.057057,0.00019536,2]
[347166188,1735539043610,-348.057057,0.00019536,2]
[347166189,1735539043624,-352.5060848,0.00019562,2]
[347166190,1735539043636,-352.5060848,0.00019562,2]
[347166191,1735539043649,-352.5060848,0.00019562,2]
[347166192,1735539043662,-352.5060848,0.00019562,2]
[347166193,1735539043675,-228.805234,0.00019562,2]
[347166194,1735539043687,-151.0,0.00019566,2]
[347166195,1735539043697,-193.648714,0.00019566,2]
[347166196,1735539043711,-379.64762,0.00019566,2]
[347166197,1735539043722,-193.648714,0.00019566,2]
[347166198,1735539043735,-379.64762,0.00019566,2]
[347166199,1735539043748,-438.885848,0.00019592,2]
[347166200,1735539043759,-438.885848,0.00019592,2]
[347166201,1735539043772,-1363.072733,0.00019592,2]
[347166202,1735539043782,-1363.072733,0.00019592,2]
[347166203,1735539043793,-1149.642885,0.00019592,2]
[347166204,1735539043805,-1149.642885,0.00019592,2]
[347166205,1735539043816,-671.01792673,0.00019592,2]
[347166206,1735539043829,-151.0,0.000196,2]
[347166207,1735539043840,-1268.627667,0.0001968,2]
[347166208,1735539043853,-1268.627667,0.0001968,2]
[347166209,1735539043863,-3655.000013,0.0001968,2]
[347166210,1735539043876,-3655.000013,0.0001968,2]
[347166211,1735539043888,-1122.231708,0.0001968,2]
[347166212,1735539043900,-1122.231708,0.0001968,2]
[347166213,1735539043913,-215.660806,0.0001968,2]
[347166214,1735539043923,-215.660806,0.0001968,2]
[347166215,1735539043933,-778.129999,0.0001968,2]
[347166216,1735539043943,-778.129999,0.0001968,2]
[347166217,1735539043954,-611.731519,0.0001968,2]
[347166218,1735539043967,-611.731519,0.0001968,2]
[347166219,1735539043981,-170.563264,0.0001968,2]
[347166220,1735539043993,-170.563264,0.0001968,2]
[347166221,1735539044004,-157.21,0.00019683,2]
[347166222,1735539044015,-644.47,0.00019691,2]
[347166223,1735539044026,-500.0,0.00019691,2]
[347166224,1735539044038,-3479.6,0.00019691,2]
[347166225,1735539044051,-2768.29,0.00019692,2]
[347166226,1735539044063,-899.74,0.00019692,2]
[347166227,1735539044073,-725.64,0.00019692,2]
[347166228,1735539044085,-823.0,0.00019704,2]
[347166229,1735539044096,-1170.3602885,0.00019799,2]
[347166230,1735539044108,-151.0,0.00019799,2]
[347166231,1735539044119,-507.61859,0.00019799,2]
[347166232,1735539044131,-507.61859,0.00019799,2]
[347166233,1735539044142,-151.0,0.00019799,2]
[347166234,1735539044154,-151.0,0.00019799,2]
[347166235,1735539044165,-221.397527,0.00019799,2]
[347166236,1735539044177,-221.397527,0.00019799,2]
[347166237,1735539044188,-381.524298,0.00019799,2]
[347166238,1735539044199,-381.524298,0.00019799,2]
[347166239,1735539044211,-669.184803,0.00019799,2]
[347166240,1735539044222,-669.184803,0.00019799,2]
[347166241,1735539044232,-676.641157,0.00019799,2]
[347166242,1735539044243,-676.641157,0.00019799,2]
[347166243,1735539044254,-5868.57371091,0.000198,2]
[347166244,1735539044265,-218.216101,0.000198,2]
[347166245,1735539044275,-218.216101,0.000198,2]
[347166246,1735539044286,-257.852838,0.000198,2]
[347166247,1735539044297,-315.139313,0.000198,2]
[347166248,1735539044307,-315.139313,0.000198,2]
[347166249,1735539044320,-371.182992,0.000198,2]
[347166250,1735539044331,-371.182992,0.000198,2]
[347166251,1735539044341,-151.0,0.000198,2]
[347166252,1735539044356,-151.0,0.000198,2]
[347166253,1735539044367,-215.803718,0.000198,2]
[347166254,1735539044377,-215.803718,0.000198,2]
[347166255,1735539044388,-151.0,0.000198,2]
[347166256,1735539044398,-151.0,0.000198,2]
[347166257,1735539044409,-151.0,0.000198,2]
[347166258,1735539044419,-927.764141,0.000198,2]
[347166259,1735539044430,-927.764141,0.000198,2]
[347166260,1735539044442,-151.0,0.000198,2]
[347166261,1735539044453,-385.9192,0.000198,2]
[347166262,1735539044465,-385.9192,0.000198,2]
[347166263,1735539044476,-348.057057,0.000198,2]
[347166264,1735539044487,-348.057057,0.000198,2]
[347166265,1735539044499,-438.885848,0.000198,2]
[347166266,1735539044509,-438.885848,0.000198,2]
[347166267,1735539044521,-1363.072733,0.000198,2]
[347166268,1735539044547,-1363.072733,0.000198,2]
[347166269,1735539044655,-1149.642885,0.000198,2]
[347166270,1735539044668,-1149.642885,0.000198,2]
[347166271,1735539044678,-151.0,0.00019827,2]
[347166272,1735539044687,-223.76362,0.00019827,2]
[347166273,1735539044696,-223.76362,0.00019827,2]
[347166274,1735539044707,-153.0,0.00019836,2]
[347166275,1735539044716,-153.5340186,0.00019836,2]
[347166276,1735539044725,-153.0,0.00019836,2]
[347166277,1735539044735,-214.3641981,0.00019836,2]
[347166278,1735539044744,-214.3641981,0.00019836,2]
[347166279,1735539044753,-153.5340186,0.00019836,2]
[347166280,1735539044762,-153.0,0.00019836,2]
[347166281,1735539044771,-153.0,0.00019836,2]
[347166282,1735539044780,-214.3641981,0.00019836,2]
[347166283,1735539044790,-153.5340186,0.00019836,2]
[347166284,1735539044799,-153.0,0.00019836,2]
[347166285,1735539044809,-153.5340186,0.00019836,2]
[347166286,1735539044819,-153.0,0.00019836,2]
[347166287,1735539044828,-214.3641981,0.00019836,2]
[347166288,1735539044837,-214.3641981,0.00019836,2]
[347166289,1735539044846,-153.5340186,0.00019836,2]
[347166290,1735539044855,-153.5340186,0.00019836,2]
[347166291,1735539044865,-153.0,0.00019836,2]
[347166292,1735539044874,-214.3641981,0.00019836,2]
[347166293,1735539044883,-153.0,0.00019836,2]
[347166294,1735539044892,-214.3641981,0.00019836,2]
[347166295,1735539044902,-153.5340186,0.00019836,2]
[347166296,1735539044911,-214.3641981,0.00019836,2]
[347166297,1735539044920,-153.0,0.00019836,2]
[347166298,1735539044929,-153.0,0.00019836,2]
[347166299,1735539044938,-153.5340186,0.00019836,2]
[347166300,1735539044947,-170.563264,0.00019836,2]
[347166301,1735539044956,-170.563264,0.00019836,2]
[347166302,1735539044965,-1268.627667,0.00019894,2]
[347166303,1735539044975,-1268.627667,0.00019894,2]
[347166304,1735539044984,-3655.000013,0.00019894,2]
[347166305,1735539044994,-3655.000013,0.00019894,2]
[347166306,1735539045003,-1122.231708,0.00019894,2]
[347166307,1735539045013,-1122.231708,0.00019894,2]
[347166308,1735539045023,-215.660806,0.00019894,2]
[347166309,1735539045032,-215.660806,0.00019894,2]
[347166310,1735539045041,-778.129999,0.00019899,2]
[347166311,1735539045051,-778.129999,0.00019899,2]
[347166312,1735539045060,-611.731519,0.00019899,2]
[347166313,1735539045070,-611.731519,0.00019899,2]
[347166314,1735539045079,-151.0,0.000199,2]
[347166315,1735539045088,-151.0,0.000199,2]
[347166316,1735539045098,-290.765184,0.000199,2]
[347166317,1735539045107,-290.765184,0.000199,2]
[347166318,1735539045117,-591.12949,0.000199,2]
[347166319,1735539045126,-591.12949,0.000199,2]
[347166320,1735539045135,-215.803718,0.000199,2]
[347166321,1735539045145,-215.803718,0.000199,2]
[347166322,1735539045155,-151.0,0.000199,2]
[347166323,1735539045174,-151.0,0.000199,2]
[347166324,1735539045197,-155.402267,0.000199,2]
[347166325,1735539045219,-193.648714,0.000199,2]
[347166326,1735539045241,-379.64762,0.000199,2]
[347166327,1735539045263,-193.648714,0.000199,2]
[347166328,1735539045284,-379.64762,0.000199,2]
[347166329,1735539045307,-1268.627667,0.000199,2]
[347166330,1735539045329,-1268.627667,0.000199,2]
[347166331,1735539045354,-151.0,0.000199,2]
[347166332,1735539045375,-3655.000013,0.000199,2]
[347166333,1735539045397,-3655.000013,0.000199,2]
[347166334,1735539045419,-151.0,0.000199,2]
[347166335,1735539045440,-1122.231708,0.000199,2]
[347166336,1735539045458,-1122.231708,0.000199,2]
[347166337,1735539045468,-215.660806,0.000199,2]
[347166338,1735539045478,-215.660806,0.000199,2]
[347166339,1735539045487,-507.61859,0.000199,2]
[347166340,1735539045497,-507.61859,0.000199,2]
[347166341,1735539045506,-151.0,0.000199,2]
[347166342,1735539045515,-151.0,0.000199,2]
[347166343,1735539045525,-221.397527,0.000199,2]
[347166344,1735539045546,-221.397527,0.000199,2]
[347166345,1735539045555,-381.524298,0.000199,2]
[347166346,1735539045565,-381.524298,0.000199,2]
[347166347,1735539045574,-669.184803,0.000199,2]
[347166348,1735539045583,-669.184803,0.000199,2]
[347166349,1735539045593,-778.129999,0.000199,2]
[347166350,1735539045602,-778.129999,0.000199,2]
[347166351,1735539045611,-927.764141,0.000199,2]
[347166352,1735539045621,-927.764141,0.000199,2]
[347166353,1735539045630,-151.0,0.000199,2]
[347166354,1735539045639,-385.9192,0.000199,2]
[347166355,1735539045648,-385.9192,0.000199,2]
[347166356,1735539045657,-676.641157,0.000199,2]
[347166357,1735539045666,-676.641157,0.000199,2]
[347166358,1735539045676,-348.057057,0.000199,2]
[347166359,1735539045685,-348.057057,0.000199,2]
[347166360,1735539045695,-438.885848,0.000199,2]
[347166361,1735539045704,-611.731519,0.000199,2]
[347166362,1735539045714,-438.885848,0.000199,2]
[347166363,1735539045723,-37.88437162,0.000199,2]
[347166364,1735539045819,-573.84714738,0.000199,2]
[347166365,1735539045829,-44.86961157,0.000199,2]
[347166366,1735539045840,-1318.20312143,0.000199,2]
[347166367,1735539045850,-606.02602344,0.000199,2]
[347166368,1735539045930,-505.66635033,0.00015034,2]
[347166369,1735539045940,-153.5340186,0.00019836,2]
[347166370,1735539045950,-757.04670956,0.000199,2]
[347166371,1735539045960,-754.7072661,0.000199,2]
[347166372,1735539045971,-348.89256572,0.000199,2]
[347166373,1735539045988,-229.482785,0.00019836,2]
[347166374,1735539045998,-46.04305318,0.000199,2]
[347166375,1735539046007,-1149.642885,0.000199,2]
[347166376,1735539046017,-170.563264,0.000199,2]
[347166377,1735539046026,-170.563264,0.000199,2]
[347166378,1735539046035,-5000.0,0.00019933,2]
[347166379,1735539046045,-5000.0,0.00019933,2]
[347166380,1735539046054,-5000.0,0.00019933,2]
[347166381,1735539046063,-5000.0,0.00019933,2]
[347166382,1735539046073,-5000.0,0.00019933,2]
[347166383,1735539046082,-193.648714,0.00019933,2]
[347166384,1735539046091,-379.64762,0.00019933,2]
[347166385,1735539046101,-193.648714,0.00019933,2]
[347166386,1735539046110,-379.64762,0.00019933,2]
[347166387,1735539046119,-151.0,0.00019933,2]
[347166388,1735539046129,-151.0,0.00019933,2]
[347166390,1735539046139,-507.61859,0.00019933,2]
[347166391,1735539046147,-507.61859,0.00019933,2]
[347166392,1735539046157,-151.0,0.00019933,2]
[347166393,1735539046166,-151.0,0.00019933,2]
[347166394,1735539046176,-221.397527,0.00019933,2]
[347166395,1735539046185,-221.397527,0.00019933,2]
[347166396,1735539046194,-381.524298,0.00019933,2]
[347166397,1735539046204,-381.524298,0.00019933,2]
[347166398,1735539046214,-669.184803,0.00019933,2]
[347166399,1735539046223,-669.184803,0.00019933,2]
[347166400,1735539046232,-676.641157,0.00019933,2]
[347166401,1735539046242,-676.641157,0.00019933,2]
[347166402,1735539046251,-348.057057,0.00019933,2]
[347166403,1735539046260,-348.057057,0.00019933,2]
[347166404,1735539046270,-438.885848,0.00019933,2]
[347166405,1735539046279,-438.885852,0.00019933,2]
[347166406,1735539046289,-1363.072733,0.00019933,2]
[347166407,1735539046298,-1363.07273955,0.00019933,2]
[347166408,1735539046307,-1149.642885,0.00019933,2]
[347166409,1735539046317,-1149.642879,0.00019933,2]
[347166411,1735539046327,-644.47,0.00019965,2]
[347166412,1735539046335,-555.45833995,0.00019965,2]
[347166414,1735539046345,-3479.6,0.00019965,2]
[347166416,1735539046357,-151.0,0.00019966,2]
[347166418,1735539046366,-151.0,0.00019966,2]
[347166420,1735539046375,-1268.627667,0.00019966,2]
[347166422,1735539046384,-1268.627667,0.00019966,2]
[347166423,1735539046394,-3655.000013,0.00019966,2]
[347166424,1735539046403,-3655.000013,0.00019966,2]
[347166425,1735539046412,-1122.231708,0.00019966,2]
[347166426,1735539046422,-1122.231708,0.00019966,2]
[347166427,1735539046431,-215.660806,0.00019966,2]
[347166428,1735539046440,-215.660806,0.00019966,2]
[347166429,1735539046449,-2768.29,0.00019966,2]
[347166430,1735539046459,-927.764141,0.00019966,2]
[347166431,1735539046468,-927.764141,0.00019966,2]
[347166432,1735539046477,-151.0,0.00019966,2]
[347166433,1735539046486,-385.9192,0.00019966,2]
[347166434,1735539046495,-385.9192,0.00019966,2]
[347166435,1735539046505,-899.74,0.00019966,2]
[347166436,1735539046514,-725.64,0.00019966,2]
[347166437,1735539046524,-218.216101,0.00019967,2]
[347166438,1735539046533,-218.216101,0.00019967,2]
[347166439,1735539046542,-315.139313,0.00019967,2]
[347166440,1735539046551,-315.139313,0.00019967,2]
[347166441,1735539046560,-371.182992,0.00019967,2]
[347166442,1735539046569,-371.182992,0.00019967,2]
[347166443,1735539046580,-151.0,0.00019967,2]
[347166444,1735539046589,-151.0,0.00019967,2]
[347166445,1735539046598,-151.0,0.00019967,2]
[347166446,1735539046607,-151.0,0.00019967,2]
[347166447,1735539046617,-290.765184,0.00019967,2]
[347166448,1735539046626,-290.765184,0.00019967,2]
[347166449,1735539046635,-215.803718,0.00019967,2]
[347166450,1735539046644,-215.803718,0.00019967,2]
[347166451,1735539046654,-468.37336691,0.00019973,2]
[347166452,1735539046663,-411.0,0.0001999,2]
[347166453,1735539046672,-591.12949,0.0001999,2]
[347166454,1735539046681,-591.12949,0.0001999,2]
[347166455,1735539046690,-153.0,0.00019993,2]
[347166456,1735539046700,-153.0,0.00019993,2]
[347166457,1735539046711,-153.0,0.00019993,2]
[347166458,1735539046720,-153.0,0.00019993,2]
[347166459,1735539046729,-153.0,0.00019993,2]
[347166460,1735539046739,-153.0,0.00019993,2]
[347166461,1735539046748,-153.0,0.00019993,2]
[347166462,1735539046757,-153.0,0.00019993,2]
[347166463,1735539046766,-153.0,0.00019993,2]
[347166464,1735539046776,-153.0,0.00019993,2]
[347166465,1735539046785,-153.0,0.00019993,2]
[347166466,1735539046794,-153.0,0.00019993,2]
[347166467,1735539046803,-153.0,0.00019993,2]
[347166468,1735539046812,-153.0,0.00019993,2]
[347166470,1735539046821,-153.0,0.00019993,2]
[347166472,1735539046830,-148.0124467,0.00019993,2]
[347166477,1735539047020,-500.0,0.00015033,2]
[347166478,1735539047029,-502.67890568,0.00015307,2]
[347166479,1735539047039,-4.9875533,0.00019993,2]
[347166480,1735539047048,-153.0,0.00019993,2]
[347166481,1735539047057,-151.0,0.00019993,2]
[347166482,1735539047067,-199.063201,0.00019993,2]
[347166483,1735539047076,-221.397527,0.00019993,2]
[347166484,1735539047085,-221.397527,0.00019993,2]
[347166485,1735539047094,-381.524298,0.00019993,2]
[347166486,1735539047103,-381.524298,0.00019993,2]
[347166487,1735539047113,-669.184803,0.00019993,2]
[347166488,1735539047123,-778.129999,0.00019993,2]
[347166489,1735539047132,-669.184803,0.00019993,2]
[347166490,1735539047142,-778.129999,0.00019993,2]
[347166491,1735539047151,-611.731519,0.00019993,2]
[347166492,1735539047161,-611.731519,0.00019993,2]
[347166493,1735539047170,-160.0,0.00019999,2]
[347166494,1735539047179,-160.0,0.00019999,2]
[347166495,1735539047188,-803.97354194,0.00019999,2]
[347166496,1735539047198,-159.55777,0.00019999,2]
[347166497,1735539047209,-178.08032814,0.00019999,2]
[347166509,1735540109055,-380.0,0.00013973,2]
[347166510,1735540109080,-1096.15394685,0.00014239,2]
[347166511,1735540109110,-106.94386115,0.00014239,2]
[347166512,1735540109138,-300.0,0.00015032,2]
[347166513,1735540109163,-144.40824515,0.00015033,2]
[347166514,1735540109193,-355.59175485,0.00015033,2]
[347166515,1735540109219,-500.0,0.00015033,2]
[347166516,1735540109246,-500.0,0.00015033,2]
[347166517,1735540109272,-120.562192,0.00015033,2]
[347166519,1735540118009,3144.2246695,0.00025,120]
[347166522,1735540120425,1660.999999,0.0002,120]
[347166523,1735540134157,-500.0,0.00015033,2]
[347166524,1735540134182,-34.51499501,0.00015033,2]
[347166613,1735540232046,-300.0,0.00015032,2]
[347166615,1735540232059,-1587.88500499,0.00015033,2]
[347166618,1735540232071,-570.52,0.00015033,2]
[347166620,1735540232083,-500.0,0.00015033,2]
[347166622,1735540232095,-500.0,0.00015033,2]
[347166624,1735540232106,-395.69878106,0.00015033,2]
[347166627,1735540232117,-350.16394828,0.00015033,2]
[347166629,1735540232127,-500.0,0.00015033,2]
[347166631,1735540232137,-623.65,0.00015033,2]
[347166633,1735540232148,-552.63,0.00015033,2]
[347166635,1735540232159,-500.0,0.00015033,2]
[347166638,1735540232171,-500.0,0.00015205,2]
[347166640,1735540232182,-500.0,0.00015205,2]
[347166642,1735540232193,-500.0,0.00015205,2]
[347166644,1735540232204,-177.79111112,0.00015205,2]
[347166647,1735540232215,-159.8366575,0.00015205,2]